[Event "Late-Titled-Tuesday-Blitz-February-20-2024"]
[Site "Chess.com"]
[Date "2024.02.20"]
[Round "6"]
[White "igorknyazev"]
[Black "Cambek64"]
[Result "0-1"]
[WhiteElo "2201"]
[BlackElo "2432"]
[TimeControl "180+1"]
[EndTime "15:05:49 PST"]
[Termination "Cambek64 won by resignation"]

1. e4 {[%clk 0:03:00.9]} 1... c5 {[%clk 0:02:57.5]} 2. f4 {[%clk 0:03:00.1]}
2... e6 {[%clk 0:02:56.4]} 3. Nf3 {[%clk 0:03:00.7]} 3... a6 {[%clk 0:02:56.8]}
4. Be2 {[%clk 0:03:00.1]} 4... b5 {[%clk 0:02:56.9]} 5. O-O {[%clk 0:03:00.8]}
5... Bb7 {[%clk 0:02:57.3]} 6. d3 {[%clk 0:02:59.7]} 6... d5 {[%clk 0:02:56.4]}
7. e5 {[%clk 0:02:56.3]} 7... Ne7 {[%clk 0:02:54.9]} 8. Be3 {[%clk 0:02:56]}
8... Nf5 {[%clk 0:02:54.5]} 9. Bf2 {[%clk 0:02:56.1]} 9... h5 {[%clk 0:02:55.2]}
10. c4 {[%clk 0:02:44.8]} 10... d4 {[%clk 0:02:51.7]} 11. cxb5 {[%clk
0:02:39.2]} 11... axb5 {[%clk 0:02:51.8]} 12. Qb3 {[%clk 0:02:39.5]} 12... Qa5
{[%clk 0:02:47.2]} 13. a4 {[%clk 0:02:34.4]} 13... Bd5 {[%clk 0:02:44.9]} 14.
Qc2 {[%clk 0:02:25.3]} 14... bxa4 {[%clk 0:02:44.4]} 15. Nbd2 {[%clk 0:02:19.7]}
15... Nc6 {[%clk 0:02:42.9]} 16. Nc4 {[%clk 0:02:17.1]} 16... Qb5 {[%clk
0:02:35.2]} 17. Nh4 {[%clk 0:02:12.3]} 17... g6 {[%clk 0:02:10.9]} 18. Bf3
{[%clk 0:01:59]} 18... Nb4 {[%clk 0:02:05.3]} 19. Qd2 {[%clk 0:01:51.3]} 19...
Be7 {[%clk 0:02:03.8]} 20. Nxf5 {[%clk 0:01:49.1]} 20... gxf5 {[%clk 0:02:02.5]}
21. Bh4 {[%clk 0:01:42.4]} 21... Bf8 {[%clk 0:01:44.5]} 22. Bxd5 {[%clk
0:01:33.6]} 22... Nxd5 {[%clk 0:01:42.7]} 23. Ra3 {[%clk 0:01:20.7]} 23... Kd7
{[%clk 0:01:42.9]} 24. Rfa1 {[%clk 0:01:20]} 24... Rg8 {[%clk 0:01:34.7]} 25.
Bg5 {[%clk 0:01:11.7]} 25... Be7 {[%clk 0:01:27.3]} 26. Bxe7 {[%clk 0:01:05.9]}
26... Kxe7 {[%clk 0:01:17.6]} 27. Kf2 {[%clk 0:00:52.1]} 27... h4 {[%clk
0:01:14.8]} 28. Kf3 {[%clk 0:00:47.1]} 28... Qc6 {[%clk 0:01:13.5]} 29. Kf2
{[%clk 0:00:35.6]} 29... Nxf4 {[%clk 0:00:47]} 30. Qxf4 {[%clk 0:00:28]} 30...
Qxg2+ {[%clk 0:00:46.5]} 31. Ke1 {[%clk 0:00:27.2]} 31... Qh1+ {[%clk
0:00:45.6]} 32. Qf1 {[%clk 0:00:17.2]} 32... Rg1 {[%clk 0:00:45.4]} 33. Kf2
{[%clk 0:00:14.6]} 33... Qxh2+ {[%clk 0:00:42.6]} 34. Ke1 {[%clk 0:00:12.2]}
34... Rxf1+ {[%clk 0:00:41.8]} 35. Kxf1 {[%clk 0:00:12.5]} 35... Rg8 {[%clk
0:00:41.7]} 0-1

[Event "Late-Titled-Tuesday-Blitz-February-20-2024"]
[Site "Chess.com"]
[Date "2024.02.20"]
[Round "6"]
[White "micke12a"]
[Black "kylelancman"]
[Result "1-0"]
[WhiteElo "2360"]
[BlackElo "2464"]
[TimeControl "180+1"]
[EndTime "15:05:52 PST"]
[Termination "micke12a won by resignation"]

1. d4 {[%clk 0:02:57.9]} 1... d5 {[%clk 0:02:58.8]} 2. Nc3 {[%clk 0:02:57.8]}
2... Nf6 {[%clk 0:02:57.1]} 3. Bf4 {[%clk 0:02:58.1]} 3... c5 {[%clk 0:02:56.2]}
4. e4 {[%clk 0:02:58.4]} 4... Nxe4 {[%clk 0:02:44]} 5. Nxe4 {[%clk 0:02:56.9]}
5... dxe4 {[%clk 0:02:44.2]} 6. dxc5 {[%clk 0:02:57.6]} 6... Qa5+ {[%clk
0:02:30]} 7. c3 {[%clk 0:02:56.8]} 7... Qxc5 {[%clk 0:02:30]} 8. Qa4+ {[%clk
0:02:57]} 8... Nc6 {[%clk 0:02:26.2]} 9. Qxe4 {[%clk 0:02:56.7]} 9... Bf5 {[%clk
0:02:24.7]} 10. Qe3 {[%clk 0:02:55.9]} 10... Qxe3+ {[%clk 0:02:23.2]} 11. Bxe3
{[%clk 0:02:56.8]} 11... O-O-O {[%clk 0:02:17.7]} 12. Nf3 {[%clk 0:02:55.9]}
12... f6 {[%clk 0:02:13.7]} 13. Bb5 {[%clk 0:02:51]} 13... Kb8 {[%clk
0:02:10.2]} 14. Bxc6 {[%clk 0:02:39.9]} 14... bxc6 {[%clk 0:02:11.1]} 15. Nd4
{[%clk 0:02:39.9]} 15... Bd7 {[%clk 0:02:10.2]} 16. O-O-O {[%clk 0:02:39.5]}
16... Kc8 {[%clk 0:01:57.4]} 17. Nb3 {[%clk 0:02:35.3]} 17... e5 {[%clk
0:01:44.8]} 18. Bxa7 {[%clk 0:02:32.3]} 18... Be7 {[%clk 0:01:35]} 19. Bc5
{[%clk 0:02:29.9]} 19... Bxc5 {[%clk 0:01:30.7]} 20. Nxc5 {[%clk 0:02:28.5]}
20... Bf5 {[%clk 0:01:28.7]} 21. Rxd8+ {[%clk 0:02:23.6]} 21... Kxd8 {[%clk
0:01:28]} 22. Rd1+ {[%clk 0:02:22]} 22... Kc7 {[%clk 0:01:28.5]} 23. b4 {[%clk
0:02:21.6]} 23... Ra8 {[%clk 0:01:25.1]} 24. Kb2 {[%clk 0:02:20.3]} 24... e4
{[%clk 0:01:22.1]} 25. a4 {[%clk 0:02:17.9]} 25... Re8 {[%clk 0:01:21.3]} 26. a5
{[%clk 0:02:14.4]} 26... e3 {[%clk 0:01:21.4]} 27. fxe3 {[%clk 0:02:13.3]} 27...
Rxe3 {[%clk 0:01:22.3]} 28. a6 {[%clk 0:02:09.7]} 28... Re2+ {[%clk 0:01:21.3]}
29. Ka3 {[%clk 0:02:08.3]} 29... Kb6 {[%clk 0:01:14.5]} 30. Rd8 {[%clk
0:02:03.1]} 30... Bb1 {[%clk 0:00:56]} 31. Rb8+ {[%clk 0:02:01.5]} 31... Ka7
{[%clk 0:00:51.9]} 32. Rb7+ {[%clk 0:02:00.8]} 32... Ka8 {[%clk 0:00:52.3]} 33.
Rxg7 {[%clk 0:01:49]} 33... Ra2+ {[%clk 0:00:39.6]} 34. Kb3 {[%clk 0:01:47.5]}
34... Re2 {[%clk 0:00:24.8]} 35. c4 {[%clk 0:01:23]} 35... Re3+ {[%clk
0:00:23.3]} 36. Ka4 {[%clk 0:01:20.4]} 36... Ba2 {[%clk 0:00:21.8]} 37. Ka5
{[%clk 0:01:16.5]} 37... Bxc4 {[%clk 0:00:20.6]} 38. Kb6 {[%clk 0:01:16.5]}
38... Re8 {[%clk 0:00:20.3]} 39. Ra7+ {[%clk 0:01:13.6]} 39... Kb8 {[%clk
0:00:20.9]} 40. Nd7+ {[%clk 0:01:13.3]} 40... Kc8 {[%clk 0:00:21.4]} 41. Ra8+
{[%clk 0:01:07.5]} 41... Kxd7 {[%clk 0:00:21.5]} 42. Rxe8 {[%clk 0:01:07.9]}
42... Bxa6 {[%clk 0:00:21.9]} 43. Rf8 {[%clk 0:00:57.7]} 43... Bc4 {[%clk
0:00:21.4]} 44. Rxf6 {[%clk 0:00:56.9]} 44... Bd5 {[%clk 0:00:19.4]} 45. Rh6
{[%clk 0:00:56.8]} 45... Bxg2 {[%clk 0:00:19.1]} 46. Rxh7+ {[%clk 0:00:56.3]}
46... Kd6 {[%clk 0:00:19]} 47. h4 {[%clk 0:00:55.8]} 47... Ke6 {[%clk
0:00:18.7]} 48. h5 {[%clk 0:00:55.7]} 48... Kf6 {[%clk 0:00:18.8]} 49. Rh6+
{[%clk 0:00:54.9]} 49... Kg5 {[%clk 0:00:19.2]} 50. Rxc6 {[%clk 0:00:54.2]}
50... Kxh5 {[%clk 0:00:19.8]} 51. b5 {[%clk 0:00:54]} 51... Kg5 {[%clk
0:00:20.4]} 52. Kc7 {[%clk 0:00:54]} 52... Kf5 {[%clk 0:00:20.9]} 53. b6 {[%clk
0:00:54.5]} 53... Ke5 {[%clk 0:00:21]} 54. b7 {[%clk 0:00:54.1]} 54... Bxc6
{[%clk 0:00:21.7]} 55. Kxc6 {[%clk 0:00:54.2]} 1-0

[Event "Late-Titled-Tuesday-Blitz-February-20-2024"]
[Site "Chess.com"]
[Date "2024.02.20"]
[Round "6"]
[White "Korchmar_Vasiliy"]
[Black "VincentKeymer"]
[Result "0-1"]
[WhiteElo "2759"]
[BlackElo "3044"]
[TimeControl "180+1"]
[EndTime "15:05:54 PST"]
[Termination "VincentKeymer won on time"]

1. e4 {[%clk 0:03:00.9]} 1... c6 {[%clk 0:02:58.7]} 2. d4 {[%clk 0:03:00.7]}
2... d5 {[%clk 0:02:59.6]} 3. exd5 {[%clk 0:03:00.7]} 3... cxd5 {[%clk
0:03:00.5]} 4. Bd3 {[%clk 0:03:01.1]} 4... Nf6 {[%clk 0:03:00.2]} 5. h3 {[%clk
0:03:00]} 5... Nc6 {[%clk 0:03:00.3]} 6. c3 {[%clk 0:03:00.1]} 6... e5 {[%clk
0:03:00.4]} 7. dxe5 {[%clk 0:03:01]} 7... Nxe5 {[%clk 0:03:01.1]} 8. Qe2 {[%clk
0:03:01.4]} 8... Qe7 {[%clk 0:02:59.1]} 9. Bc2 {[%clk 0:02:55.1]} 9... b6 {[%clk
0:02:59.3]} 10. Na3 {[%clk 0:02:53.7]} 10... Ba6 {[%clk 0:02:58.4]} 11. Nb5
{[%clk 0:02:53.8]} 11... O-O-O {[%clk 0:02:57.6]} 12. a4 {[%clk 0:02:53.2]}
12... Kb7 {[%clk 0:02:55.2]} 13. Be3 {[%clk 0:02:42.2]} 13... Nc4 {[%clk
0:02:54.7]} 14. Nf3 {[%clk 0:02:35.5]} 14... Re8 {[%clk 0:02:47.5]} 15. Bd3
{[%clk 0:02:13.3]} 15... Nxe3 {[%clk 0:02:44.9]} 16. Nd6+ {[%clk 0:02:12.6]}
16... Qxd6 {[%clk 0:02:42.4]} 17. Bxa6+ {[%clk 0:02:12.9]} 17... Kb8 {[%clk
0:02:43.1]} 18. fxe3 {[%clk 0:02:13.3]} 18... Qg3+ {[%clk 0:02:43.8]} 19. Kf1
{[%clk 0:01:04.3]} 19... Bc5 {[%clk 0:02:39.2]} 20. Nd4 {[%clk 0:00:56.1]} 20...
Rxe3 {[%clk 0:02:20.1]} 21. Qf2 {[%clk 0:00:50.8]} 21... Qxf2+ {[%clk
0:01:58.8]} 22. Kxf2 {[%clk 0:00:51.7]} 22... Rhe8 {[%clk 0:01:59.1]} 23. Rhd1
{[%clk 0:00:50.4]} 23... R3e4 {[%clk 0:01:54.8]} 24. Rd3 {[%clk 0:00:42.4]}
24... Nd7 {[%clk 0:01:51.6]} 25. Bb5 {[%clk 0:00:35.8]} 25... Ne5 {[%clk
0:01:49.6]} 26. Rg3 {[%clk 0:00:23.9]} 26... Rg8 {[%clk 0:01:49.2]} 27. Re1
{[%clk 0:00:22.9]} 27... Kb7 {[%clk 0:01:41.1]} 28. b4 {[%clk 0:00:13.5]} 28...
Bxd4+ {[%clk 0:01:17]} 29. cxd4 {[%clk 0:00:14.4]} 29... Nc6 {[%clk 0:01:17.7]}
30. Bxc6+ {[%clk 0:00:13.3]} 30... Kxc6 {[%clk 0:01:17]} 31. Rc3+ {[%clk
0:00:13.2]} 31... Kd6 {[%clk 0:01:09.9]} 32. Rec1 {[%clk 0:00:13.8]} 32... Rxd4
{[%clk 0:01:10.1]} 33. Rc6+ {[%clk 0:00:14.1]} 33... Ke5 {[%clk 0:01:10.6]} 34.
b5 {[%clk 0:00:08.8]} 34... Rxa4 {[%clk 0:01:08.1]} 35. Rc7 {[%clk 0:00:09.4]}
35... Rc4 {[%clk 0:01:02.3]} 36. Re1+ {[%clk 0:00:07.8]} 36... Re4 {[%clk
0:00:53.2]} 37. Rxf7 {[%clk 0:00:07.9]} 37... Rxe1 {[%clk 0:00:50]} 38. Kxe1
{[%clk 0:00:08.8]} 38... Kd4 {[%clk 0:00:48.2]} 39. Rxa7 {[%clk 0:00:03.6]}
39... Kc4 {[%clk 0:00:46.6]} 40. Rd7 {[%clk 0:00:03.4]} 40... h5 {[%clk
0:00:45.3]} 41. h4 {[%clk 0:00:03.3]} 41... g5 {[%clk 0:00:44.7]} 0-1

[Event "Late-Titled-Tuesday-Blitz-February-20-2024"]
[Site "Chess.com"]
[Date "2024.02.20"]
[Round "6"]
[White "cmunda"]
[Black "JaackCamel"]
[Result "1/2-1/2"]
[WhiteElo "2134"]
[BlackElo "2192"]
[TimeControl "180+1"]
[EndTime "15:05:59 PST"]
[Termination "Game drawn by repetition"]

1. e4 {[%clk 0:03:00.9]} 1... e6 {[%clk 0:02:57.5]} 2. d4 {[%clk 0:03:00.8]}
2... d5 {[%clk 0:02:57]} 3. Nc3 {[%clk 0:03:01.7]} 3... Bb4 {[%clk 0:02:55.9]}
4. e5 {[%clk 0:03:01.2]} 4... Ne7 {[%clk 0:02:55.1]} 5. a3 {[%clk 0:03:01.2]}
5... Bxc3+ {[%clk 0:02:54.4]} 6. bxc3 {[%clk 0:03:02.1]} 6... b6 {[%clk
0:02:54.5]} 7. Nf3 {[%clk 0:03:01.3]} 7... Ba6 {[%clk 0:02:53.8]} 8. Bd3 {[%clk
0:03:01.3]} 8... Bxd3 {[%clk 0:02:53.4]} 9. cxd3 {[%clk 0:03:01.2]} 9... c5
{[%clk 0:02:49.4]} 10. dxc5 {[%clk 0:02:59.3]} 10... Qc7 {[%clk 0:02:47.3]} 11.
Qa4+ {[%clk 0:02:50.5]} 11... Nd7 {[%clk 0:02:43.6]} 12. O-O {[%clk 0:02:42.2]}
12... O-O {[%clk 0:02:40.5]} 13. Bg5 {[%clk 0:02:25.2]} 13... Ng6 {[%clk
0:02:31.5]} 14. d4 {[%clk 0:02:14.8]} 14... bxc5 {[%clk 0:02:25.3]} 15. h4
{[%clk 0:02:13.1]} 15... h6 {[%clk 0:02:19.8]} 16. Be3 {[%clk 0:02:12.3]} 16...
c4 {[%clk 0:02:14]} 17. h5 {[%clk 0:02:11.8]} 17... Ne7 {[%clk 0:02:13.5]} 18.
Rfb1 {[%clk 0:01:58.4]} 18... Nb6 {[%clk 0:02:11.3]} 19. Qa6 {[%clk 0:01:55]}
19... Rfb8 {[%clk 0:01:39.8]} 20. Rb5 {[%clk 0:01:54.3]} 20... Nbc8 {[%clk
0:01:32.6]} 21. Rab1 {[%clk 0:01:52.8]} 21... Rb6 {[%clk 0:01:26.4]} 22. Rxb6
{[%clk 0:01:40.9]} 22... Nxb6 {[%clk 0:01:24.6]} 23. a4 {[%clk 0:01:32.8]} 23...
Rb8 {[%clk 0:01:19.7]} 24. Rb5 {[%clk 0:01:28.5]} 24... Nbc8 {[%clk 0:01:15.5]}
25. Bc1 {[%clk 0:01:26.9]} 25... Rxb5 {[%clk 0:01:12.9]} 26. Qxb5 {[%clk
0:01:21.7]} 26... Qc6 {[%clk 0:01:05.5]} 27. Ba3 {[%clk 0:01:17]} 27... Qxb5
{[%clk 0:01:04.1]} 28. axb5 {[%clk 0:01:16.5]} 28... Kf8 {[%clk 0:00:50.9]} 29.
Bc5 {[%clk 0:01:16.4]} 29... Ke8 {[%clk 0:00:48.5]} 30. Ne1 {[%clk 0:01:13.6]}
30... Kd7 {[%clk 0:00:44.2]} 31. Nc2 {[%clk 0:01:13.7]} 31... Nb6 {[%clk
0:00:41.6]} 32. Bxb6 {[%clk 0:01:04.6]} 32... axb6 {[%clk 0:00:40.8]} 33. Kh2
{[%clk 0:01:03.5]} 33... Nc8 {[%clk 0:00:38.5]} 34. Kg3 {[%clk 0:01:00.1]} 34...
Na7 {[%clk 0:00:38.4]} 35. Na3 {[%clk 0:00:59.8]} 35... Ke7 {[%clk 0:00:33.2]}
36. Kh4 {[%clk 0:00:59.9]} 36... f6 {[%clk 0:00:32.9]} 37. f4 {[%clk 0:00:59.6]}
37... fxe5 {[%clk 0:00:29]} 38. fxe5 {[%clk 0:00:57.2]} 38... Kf7 {[%clk
0:00:28.4]} 39. g4 {[%clk 0:00:57.5]} 39... g6 {[%clk 0:00:28.1]} 40. g5 {[%clk
0:00:56.7]} 40... hxg5+ {[%clk 0:00:10.6]} 41. Kxg5 {[%clk 0:00:56]} 41... gxh5
{[%clk 0:00:10.8]} 42. Kxh5 {[%clk 0:00:56.3]} 42... Kg7 {[%clk 0:00:10.5]} 43.
Kg5 {[%clk 0:00:56.6]} 43... Nc8 {[%clk 0:00:08.5]} 44. Nc2 {[%clk 0:00:52]}
44... Na7 {[%clk 0:00:08.5]} 45. Na3 {[%clk 0:00:51.9]} 45... Nc8 {[%clk
0:00:08.7]} 46. Kh5 {[%clk 0:00:52.2]} 46... Na7 {[%clk 0:00:06.7]} 47. Kg5
{[%clk 0:00:51.9]} 1/2-1/2

[Event "Late-Titled-Tuesday-Blitz-February-20-2024"]
[Site "Chess.com"]
[Date "2024.02.20"]
[Round "6"]
[White "bocah_sakit"]
[Black "ansko1999"]
[Result "1-0"]
[WhiteElo "2513"]
[BlackElo "2650"]
[TimeControl "180+1"]
[EndTime "15:06:00 PST"]
[Termination "bocah_sakit won by checkmate"]

1. e4 {[%clk 0:03:00.9]} 1... d6 {[%clk 0:03:00.1]} 2. d4 {[%clk 0:03:00.4]}
2... Nf6 {[%clk 0:03:00.6]} 3. Nc3 {[%clk 0:03:00.7]} 3... c6 {[%clk 0:03:00.3]}
4. f4 {[%clk 0:02:57]} 4... Qa5 {[%clk 0:02:59.4]} 5. Nf3 {[%clk 0:02:57]} 5...
Nxe4 {[%clk 0:02:55.4]} 6. Qd3 {[%clk 0:02:51.6]} 6... Bf5 {[%clk 0:02:42.9]} 7.
Qe3 {[%clk 0:02:43.1]} 7... Nxc3 {[%clk 0:02:39.5]} 8. bxc3 {[%clk 0:02:42.5]}
8... Nd7 {[%clk 0:02:27]} 9. Bd2 {[%clk 0:02:23.1]} 9... Qd5 {[%clk 0:02:18.5]}
10. Bd3 {[%clk 0:02:18.9]} 10... Bxd3 {[%clk 0:02:18.2]} 11. cxd3 {[%clk
0:02:19.8]} 11... b5 {[%clk 0:02:12.1]} 12. O-O {[%clk 0:02:18.8]} 12... e6
{[%clk 0:02:04.1]} 13. f5 {[%clk 0:02:19.3]} 13... Be7 {[%clk 0:01:55.3]} 14.
fxe6 {[%clk 0:02:18.8]} 14... fxe6 {[%clk 0:01:43.9]} 15. Rae1 {[%clk
0:02:07.9]} 15... Qxa2 {[%clk 0:01:22.2]} 16. c4 {[%clk 0:02:02.1]} 16... Nf8
{[%clk 0:01:19.5]} 17. Ng5 {[%clk 0:01:58.6]} 17... O-O-O {[%clk 0:00:41.1]} 18.
Nf7 {[%clk 0:01:47.5]} 18... Nd7 {[%clk 0:00:27.6]} 19. Nxh8 {[%clk 0:01:42.2]}
19... Rxh8 {[%clk 0:00:28.5]} 20. Rf7 {[%clk 0:01:41.2]} 20... Bf6 {[%clk
0:00:25.7]} 21. Qxe6 {[%clk 0:01:39.8]} 21... Rd8 {[%clk 0:00:26.2]} 22. Be3
{[%clk 0:01:30.1]} 22... Qa5 {[%clk 0:00:19.9]} 23. Bf2 {[%clk 0:01:27.3]} 23...
Qc7 {[%clk 0:00:12.1]} 24. cxb5 {[%clk 0:01:19.1]} 24... cxb5 {[%clk 0:00:11.5]}
25. Kh1 {[%clk 0:01:17]} 25... Kb8 {[%clk 0:00:10.6]} 26. Bg3 {[%clk 0:01:13.4]}
26... Qc6 {[%clk 0:00:08.3]} 27. d5 {[%clk 0:01:08.3]} 27... Qc3 {[%clk
0:00:05.7]} 28. Rxd7 {[%clk 0:01:07.3]} 28... Rxd7 {[%clk 0:00:03.9]} 29. Qxd7
{[%clk 0:01:08.2]} 29... Be5 {[%clk 0:00:03.4]} 30. Qxb5+ {[%clk 0:01:03.5]}
30... Kc7 {[%clk 0:00:03.3]} 31. Qc4+ {[%clk 0:01:00.5]} 31... Qxc4 {[%clk
0:00:02.8]} 32. dxc4 {[%clk 0:01:01.4]} 32... Bxg3 {[%clk 0:00:03]} 33. hxg3
{[%clk 0:01:02.2]} 33... Kb6 {[%clk 0:00:02.9]} 34. Ra1 {[%clk 0:00:58.7]} 34...
Kc5 {[%clk 0:00:02.8]} 35. Rxa7 {[%clk 0:00:58.6]} 35... Kxc4 {[%clk 0:00:03.3]}
36. Rxg7 {[%clk 0:00:59.3]} 36... Kxd5 {[%clk 0:00:03.9]} 37. Rxh7 {[%clk
0:00:59.9]} 37... Ke6 {[%clk 0:00:04.1]} 38. g4 {[%clk 0:00:59.9]} 38... d5
{[%clk 0:00:04.4]} 39. g5 {[%clk 0:01:00.4]} 39... d4 {[%clk 0:00:05.1]} 40. g6
{[%clk 0:01:00.5]} 40... d3 {[%clk 0:00:05.8]} 41. Rh3 {[%clk 0:00:59.1]} 41...
d2 {[%clk 0:00:05.7]} 42. Rd3 {[%clk 0:00:59.2]} 42... d1=N {[%clk 0:00:03.5]}
43. Rxd1 {[%clk 0:00:58.9]} 43... Kf6 {[%clk 0:00:03.6]} 44. Rd6+ {[%clk
0:00:59.1]} 44... Kg7 {[%clk 0:00:03.9]} 45. Kh2 {[%clk 0:00:59.7]} 45... Kh6
{[%clk 0:00:04.4]} 46. Kh3 {[%clk 0:01:00.6]} 46... Kg7 {[%clk 0:00:04.3]} 47.
Kg4 {[%clk 0:01:01.5]} 47... Kh6 {[%clk 0:00:04.8]} 48. Kf5 {[%clk 0:01:02]}
48... Kg7 {[%clk 0:00:05.1]} 49. Rd7+ {[%clk 0:01:02.6]} 49... Kh6 {[%clk
0:00:05.5]} 50. Rh7# {[%clk 0:01:02.3]} 1-0

[Event "Late-Titled-Tuesday-Blitz-February-20-2024"]
[Site "Chess.com"]
[Date "2024.02.20"]
[Round "6"]
[White "ahkashefi2800"]
[Black "NCchamp"]
[Result "1-0"]
[WhiteElo "2549"]
[BlackElo "2334"]
[TimeControl "180+1"]
[EndTime "15:06:05 PST"]
[Termination "ahkashefi2800 won on time"]

1. d4 {[%clk 0:03:00]} 1... d5 {[%clk 0:02:48.8]} 2. c4 {[%clk 0:02:57.1]} 2...
dxc4 {[%clk 0:02:49.7]} 3. e3 {[%clk 0:02:55.7]} 3... e5 {[%clk 0:02:49.7]} 4.
Bxc4 {[%clk 0:02:54.7]} 4... exd4 {[%clk 0:02:48.8]} 5. exd4 {[%clk 0:02:55.1]}
5... Bd6 {[%clk 0:02:49.4]} 6. Nf3 {[%clk 0:02:55.6]} 6... Nf6 {[%clk
0:02:49.4]} 7. O-O {[%clk 0:02:56]} 7... O-O {[%clk 0:02:49.6]} 8. h3 {[%clk
0:02:55.1]} 8... h6 {[%clk 0:02:48.9]} 9. Nc3 {[%clk 0:02:55.3]} 9... Nc6 {[%clk
0:02:49.5]} 10. Re1 {[%clk 0:02:55.3]} 10... Bf5 {[%clk 0:02:48.5]} 11. d5
{[%clk 0:02:43.6]} 11... Nb4 {[%clk 0:02:38.8]} 12. Nd4 {[%clk 0:02:38.3]} 12...
Bg6 {[%clk 0:02:14.2]} 13. a3 {[%clk 0:02:37.5]} 13... c5 {[%clk 0:02:05.9]} 14.
Ndb5 {[%clk 0:02:26.1]} 14... Nc2 {[%clk 0:02:03.5]} 15. Nxd6 {[%clk 0:02:09.6]}
15... Qxd6 {[%clk 0:01:59.9]} 16. Nb5 {[%clk 0:02:09]} 16... Qd7 {[%clk
0:01:47.6]} 17. Bf4 {[%clk 0:01:58]} 17... Nxa1 {[%clk 0:01:45]} 18. Qxa1 {[%clk
0:01:54.8]} 18... a6 {[%clk 0:01:16.9]} 19. Nc3 {[%clk 0:01:54]} 19... b5 {[%clk
0:01:14.7]} 20. Ba2 {[%clk 0:01:54.2]} 20... c4 {[%clk 0:01:10.6]} 21. Rd1
{[%clk 0:01:54.3]} 21... Ne4 {[%clk 0:01:08.9]} 22. Nxe4 {[%clk 0:01:43.6]}
22... Bxe4 {[%clk 0:01:09.8]} 23. d6 {[%clk 0:01:38.4]} 23... Qc6 {[%clk
0:00:49.8]} 24. f3 {[%clk 0:01:35.1]} 24... Qc5+ {[%clk 0:00:46]} 25. Kh1 {[%clk
0:01:33.2]} 25... Bc2 {[%clk 0:00:43.8]} 26. Rd2 {[%clk 0:01:31.4]} 26... Bd3
{[%clk 0:00:42.6]} 27. Qc1 {[%clk 0:01:30.9]} 27... Rad8 {[%clk 0:00:34.6]} 28.
Rxd3 {[%clk 0:01:31.1]} 28... Qf5 {[%clk 0:00:13]} 29. Rd4 {[%clk 0:01:31.3]}
29... Rfe8 {[%clk 0:00:10.7]} 30. Bb1 {[%clk 0:01:30.9]} 30... Qf6 {[%clk
0:00:10.8]} 31. Rd1 {[%clk 0:01:25.3]} 31... Re2 {[%clk 0:00:08.9]} 32. Be4
{[%clk 0:00:45.8]} 32... Rxb2 {[%clk 0:00:04.6]} 33. d7 {[%clk 0:00:44.3]} 33...
Rb3 {[%clk 0:00:04]} 34. Bc7 {[%clk 0:00:43.3]} 34... Rxd7 {[%clk 0:00:04.1]}
35. Rxd7 {[%clk 0:00:41.5]} 35... g6 {[%clk 0:00:04.4]} 36. Qxh6 {[%clk
0:00:39.2]} 36... Rb1+ {[%clk 0:00:02]} 37. Kh2 {[%clk 0:00:39]} 1-0

[Event "Late-Titled-Tuesday-Blitz-February-20-2024"]
[Site "Chess.com"]
[Date "2024.02.20"]
[Round "6"]
[White "adwilhans"]
[Black "koncheto"]
[Result "1-0"]
[WhiteElo "2346"]
[BlackElo "2401"]
[TimeControl "180+1"]
[EndTime "15:06:12 PST"]
[Termination "adwilhans won by resignation"]

1. e4 {[%clk 0:02:59.8]} 1... c5 {[%clk 0:02:58.5]} 2. Nf3 {[%clk 0:02:59.6]}
2... d6 {[%clk 0:02:58.6]} 3. d4 {[%clk 0:02:59.7]} 3... cxd4 {[%clk 0:02:59.5]}
4. Nxd4 {[%clk 0:03:00]} 4... Nf6 {[%clk 0:03:00.4]} 5. Nc3 {[%clk 0:03:00.4]}
5... Nc6 {[%clk 0:02:55.6]} 6. Bg5 {[%clk 0:02:59.8]} 6... e6 {[%clk 0:02:55.9]}
7. Qd2 {[%clk 0:02:59.8]} 7... a6 {[%clk 0:02:55.9]} 8. O-O-O {[%clk 0:02:59.4]}
8... Bd7 {[%clk 0:02:55.7]} 9. f3 {[%clk 0:02:54.4]} 9... Be7 {[%clk 0:02:54.5]}
10. h4 {[%clk 0:02:52.5]} 10... h6 {[%clk 0:02:54.3]} 11. Be3 {[%clk 0:02:51.1]}
11... h5 {[%clk 0:02:54.2]} 12. Nde2 {[%clk 0:02:49.8]} 12... b5 {[%clk
0:02:49.6]} 13. Nf4 {[%clk 0:02:49.2]} 13... Rc8 {[%clk 0:02:40]} 14. Kb1 {[%clk
0:02:48.4]} 14... Ne5 {[%clk 0:02:37.1]} 15. a3 {[%clk 0:02:36.9]} 15... Nc4
{[%clk 0:02:33.8]} 16. Bxc4 {[%clk 0:02:36.9]} 16... Rxc4 {[%clk 0:02:34.7]} 17.
Rhe1 {[%clk 0:02:33]} 17... Qa5 {[%clk 0:02:26.9]} 18. Nce2 {[%clk 0:02:27.7]}
18... Qxd2 {[%clk 0:02:00.9]} 19. Bxd2 {[%clk 0:02:28.6]} 19... O-O {[%clk
0:02:01.7]} 20. Bb4 {[%clk 0:02:27]} 20... Rc6 {[%clk 0:02:01]} 21. e5 {[%clk
0:02:25]} 21... Nd5 {[%clk 0:01:59.4]} 22. Nxd5 {[%clk 0:02:21]} 22... exd5
{[%clk 0:02:00.3]} 23. Rxd5 {[%clk 0:02:20.3]} 23... Be6 {[%clk 0:01:53.9]} 24.
Rd2 {[%clk 0:02:15.1]} 24... Bxh4 {[%clk 0:01:52.8]} 25. Red1 {[%clk 0:02:14.2]}
25... dxe5 {[%clk 0:01:50]} 26. Bxf8 {[%clk 0:02:13.2]} 26... Kxf8 {[%clk
0:01:50.9]} 27. Rd6 {[%clk 0:02:05.7]} 27... Rxd6 {[%clk 0:01:46.5]} 28. Rxd6
{[%clk 0:02:05.1]} 28... a5 {[%clk 0:01:46.7]} 29. Nc3 {[%clk 0:02:00.4]} 29...
b4 {[%clk 0:01:44.4]} 30. axb4 {[%clk 0:02:00.1]} 30... axb4 {[%clk 0:01:45.3]}
31. Nd5 {[%clk 0:01:59.2]} 31... g5 {[%clk 0:01:35.3]} 32. Nxb4 {[%clk
0:01:56.2]} 32... g4 {[%clk 0:01:32.3]} 33. fxg4 {[%clk 0:01:37.6]} 33... hxg4
{[%clk 0:01:28.6]} 34. Rxe6 {[%clk 0:01:32.4]} 34... fxe6 {[%clk 0:01:27.7]} 35.
c4 {[%clk 0:01:25.4]} 35... Ke7 {[%clk 0:01:26.8]} 36. Kc2 {[%clk 0:01:25.4]}
36... Bf6 {[%clk 0:01:25.4]} 37. Nd3 {[%clk 0:01:18.3]} 37... Kd6 {[%clk
0:01:23.1]} 38. Nf2 {[%clk 0:01:16.3]} 38... Be7 {[%clk 0:00:50.4]} 39. Nxg4
{[%clk 0:01:08.9]} 39... Kc5 {[%clk 0:00:49.9]} 40. Kc3 {[%clk 0:01:08.5]} 40...
e4 {[%clk 0:00:49.4]} 41. b4+ {[%clk 0:01:06.4]} 41... Kc6 {[%clk 0:00:49.4]}
42. c5 {[%clk 0:00:21.6]} 42... e5 {[%clk 0:00:38.6]} 43. Kc4 {[%clk 0:00:19.9]}
43... e3 {[%clk 0:00:36]} 44. Nxe3 {[%clk 0:00:19.4]} 44... Bf8 {[%clk
0:00:35.3]} 45. b5+ {[%clk 0:00:20]} 45... Kc7 {[%clk 0:00:35.4]} 46. Kd5 {[%clk
0:00:20.6]} 46... e4 {[%clk 0:00:33.4]} 47. Nc4 {[%clk 0:00:20.3]} 47... Be7
{[%clk 0:00:33]} 48. c6 {[%clk 0:00:20.4]} 48... e3 {[%clk 0:00:29.4]} 49. Nxe3
{[%clk 0:00:20]} 49... Bg5 {[%clk 0:00:29.5]} 50. Nc4 {[%clk 0:00:19.8]} 50...
Be3 {[%clk 0:00:29.6]} 51. Nxe3 {[%clk 0:00:19.3]} 1-0